[Event "Early-Titled-Tuesday-Blitz-January-30-2024"]
[Site "Chess.com"]
[Date "2024.01.30"]
[Round "4"]
[White "Alexei_Gubajdullin"]
[Black "dropstoneDP"]
[Result "0-1"]
[WhiteElo "2629"]
[BlackElo "3046"]
[TimeControl "180+1"]
[EndTime "8:42:32 PST"]
[Termination "dropstoneDP won by resignation"]

1. Nf3 {[%clk 0:02:59.8]} 1... d5 {[%clk 0:02:59.7]} 2. g3 {[%clk 0:02:59.9]}
2... g6 {[%clk 0:02:52.7]} 3. Bg2 {[%clk 0:02:59.9]} 3... Bg7 {[%clk 0:02:51.5]}
4. O-O {[%clk 0:02:59.9]} 4... Nf6 {[%clk 0:02:39.5]} 5. c4 {[%clk 0:02:59]}
5... dxc4 {[%clk 0:02:32.1]} 6. Na3 {[%clk 0:02:58.7]} 6... c5 {[%clk
0:02:25.5]} 7. Nxc4 {[%clk 0:02:57]} 7... Nc6 {[%clk 0:02:25.7]} 8. d3 {[%clk
0:02:45.6]} 8... O-O {[%clk 0:02:25]} 9. a3 {[%clk 0:02:45.2]} 9... Nd5 {[%clk
0:02:21.2]} 10. Rb1 {[%clk 0:02:40]} 10... b6 {[%clk 0:02:16.3]} 11. Bd2 {[%clk
0:02:39.4]} 11... Bb7 {[%clk 0:02:11.7]} 12. b4 {[%clk 0:02:39.2]} 12... cxb4
{[%clk 0:02:12]} 13. axb4 {[%clk 0:02:39.3]} 13... b5 {[%clk 0:02:08.7]} 14. Ne3
{[%clk 0:02:35.2]} 14... Nxe3 {[%clk 0:02:07.5]} 15. Bxe3 {[%clk 0:02:33.6]}
15... a5 {[%clk 0:02:07.6]} 16. bxa5 {[%clk 0:02:30.1]} 16... Qxa5 {[%clk
0:02:07.9]} 17. Nd2 {[%clk 0:02:29.1]} 17... b4 {[%clk 0:02:05.8]} 18. Nb3
{[%clk 0:02:25.4]} 18... Qb5 {[%clk 0:01:54.4]} 19. Nc5 {[%clk 0:02:25.2]} 19...
Rfc8 {[%clk 0:01:40.8]} 20. Nxb7 {[%clk 0:01:57.2]} 20... Qxb7 {[%clk
0:01:41.7]} 21. d4 {[%clk 0:01:49.9]} 21... Qd7 {[%clk 0:01:32.3]} 22. d5 {[%clk
0:01:47.5]} 22... Ne5 {[%clk 0:01:32.5]} 23. Rxb4 {[%clk 0:01:47.2]} 23... Nc4
{[%clk 0:01:28.5]} 24. Bd4 {[%clk 0:01:44.5]} 24... Qd6 {[%clk 0:01:20.3]} 25.
Bxg7 {[%clk 0:01:43.2]} 25... Qxb4 {[%clk 0:01:19.4]} 26. Ba1 {[%clk 0:01:27]}
26... Nd6 {[%clk 0:01:05.7]} 27. Bf3 {[%clk 0:01:14]} 27... f6 {[%clk
0:00:58.4]} 28. Kg2 {[%clk 0:01:12.6]} 28... Ra4 {[%clk 0:00:52.4]} 29. Qd3
{[%clk 0:01:06.4]} 29... Rca8 {[%clk 0:00:52.3]} 30. Bc3 {[%clk 0:01:03.2]}
30... Qc5 {[%clk 0:00:40.6]} 31. Rc1 {[%clk 0:00:55.9]} 31... Ra3 {[%clk
0:00:40.4]} 32. Qd2 {[%clk 0:00:55.8]} 32... Qb5 {[%clk 0:00:22.5]} 33. Qe3
{[%clk 0:00:54]} 33... Qd7 {[%clk 0:00:21.8]} 34. Qc5 {[%clk 0:00:40.5]} 34...
R3a4 {[%clk 0:00:19.6]} 35. Qb6 {[%clk 0:00:23.5]} 35... Rc8 {[%clk 0:00:16.9]}
36. Bd2 {[%clk 0:00:22.9]} 36... Rxc1 {[%clk 0:00:15.6]} 37. Bxc1 {[%clk
0:00:23.1]} 37... Kg7 {[%clk 0:00:13.4]} 38. Bf4 {[%clk 0:00:22.4]} 38... Ra8
{[%clk 0:00:13.1]} 39. h4 {[%clk 0:00:21]} 39... h6 {[%clk 0:00:12.7]} 40. Qe3
{[%clk 0:00:18.4]} 40... g5 {[%clk 0:00:11.7]} 41. hxg5 {[%clk 0:00:18.6]} 41...
hxg5 {[%clk 0:00:12.6]} 42. Bxg5 {[%clk 0:00:19.5]} 42... fxg5 {[%clk
0:00:07.8]} 43. Qxg5+ {[%clk 0:00:19.3]} 43... Kf8 {[%clk 0:00:08.3]} 44. Qh6+
{[%clk 0:00:16.4]} 44... Kg8 {[%clk 0:00:08.8]} 45. Qg6+ {[%clk 0:00:15.7]}
45... Kh8 {[%clk 0:00:07.6]} 46. Bg4 {[%clk 0:00:15.4]} 46... Qe8 {[%clk
0:00:04.4]} 47. Qh6+ {[%clk 0:00:15.2]} 47... Kg8 {[%clk 0:00:05]} 48. Be6+
{[%clk 0:00:12.7]} 48... Nf7 {[%clk 0:00:05.7]} 49. Qg6+ {[%clk 0:00:11.5]}
49... Kf8 {[%clk 0:00:06.2]} 50. Qh7 {[%clk 0:00:11.5]} 50... Ra6 {[%clk
0:00:04.5]} 51. f4 {[%clk 0:00:11.2]} 51... Rxe6 {[%clk 0:00:04.4]} 52. dxe6
{[%clk 0:00:11.1]} 52... Qc6+ {[%clk 0:00:05]} 53. Kf2 {[%clk 0:00:09]} 53...
Qxe6 {[%clk 0:00:05.4]} 54. Qd3 {[%clk 0:00:07]} 54... Qf6 {[%clk 0:00:05.8]}
55. Qc4 {[%clk 0:00:06.4]} 55... Nd6 {[%clk 0:00:05.8]} 56. Qd5 {[%clk
0:00:06.7]} 56... Qg6 {[%clk 0:00:05.6]} 57. Kf3 {[%clk 0:00:06.6]} 57... Qb1
{[%clk 0:00:05]} 58. Qg5 {[%clk 0:00:04.8]} 58... Qf1+ {[%clk 0:00:04.7]} 59.
Ke3 {[%clk 0:00:04]} 59... Nc4+ {[%clk 0:00:04.6]} 60. Kd3 {[%clk 0:00:04.1]}
60... Nd6 {[%clk 0:00:05.1]} 61. Qh6+ {[%clk 0:00:04.2]} 61... Ke8 {[%clk
0:00:05.3]} 62. Qh8+ {[%clk 0:00:03.7]} 62... Kd7 {[%clk 0:00:05.8]} 63. Qg7
{[%clk 0:00:03]} 63... Qd1+ {[%clk 0:00:05.4]} 64. Kc3 {[%clk 0:00:01.6]} 64...
Qa1+ {[%clk 0:00:05.1]} 0-1

[Event "Early-Titled-Tuesday-Blitz-January-30-2024"]
[Site "Chess.com"]
[Date "2024.01.30"]
[Round "4"]
[White "blitis"]
[Black "amanjazu"]
[Result "0-1"]
[WhiteElo "2599"]
[BlackElo "2422"]
[TimeControl "180+1"]
[EndTime "8:42:39 PST"]
[Termination "amanjazu won by resignation"]

1. e4 {[%clk 0:03:00.9]} 1... e6 {[%clk 0:02:59.4]} 2. d4 {[%clk 0:02:59.4]}
2... d5 {[%clk 0:03:00.3]} 3. exd5 {[%clk 0:03:00.2]} 3... exd5 {[%clk
0:03:01.2]} 4. Qf3 {[%clk 0:03:00.4]} 4... c6 {[%clk 0:02:58.2]} 5. Bd3 {[%clk
0:02:59.8]} 5... Qf6 {[%clk 0:02:55.2]} 6. Be3 {[%clk 0:02:52.4]} 6... Bd6
{[%clk 0:02:47.1]} 7. Nd2 {[%clk 0:02:43.8]} 7... Be6 {[%clk 0:02:45.3]} 8. Ne2
{[%clk 0:02:38.8]} 8... Nd7 {[%clk 0:02:39.8]} 9. Nf4 {[%clk 0:02:34.1]} 9... g6
{[%clk 0:02:19.7]} 10. Nxe6 {[%clk 0:02:15.4]} 10... fxe6 {[%clk 0:02:07]} 11.
Qxf6 {[%clk 0:02:05.9]} 11... Ngxf6 {[%clk 0:02:07.9]} 12. f4 {[%clk 0:02:03.8]}
12... Ng4 {[%clk 0:01:57.3]} 13. Ke2 {[%clk 0:02:03.4]} 13... O-O {[%clk
0:01:55]} 14. g3 {[%clk 0:01:57.9]} 14... c5 {[%clk 0:01:40.3]} 15. c3 {[%clk
0:01:56.9]} 15... Rac8 {[%clk 0:01:28.7]} 16. Nf3 {[%clk 0:01:54]} 16... Ndf6
{[%clk 0:01:14.2]} 17. Bg1 {[%clk 0:01:39.9]} 17... Rfe8 {[%clk 0:00:56.4]} 18.
Ne5 {[%clk 0:01:24.4]} 18... Nh6 {[%clk 0:00:42.2]} 19. h3 {[%clk 0:00:39.7]}
19... Ne4 {[%clk 0:00:38.6]} 20. Bxe4 {[%clk 0:00:30.5]} 20... dxe4 {[%clk
0:00:39.5]} 21. g4 {[%clk 0:00:30.7]} 21... Rf8 {[%clk 0:00:29.6]} 22. Rf1
{[%clk 0:00:21.7]} 22... g5 {[%clk 0:00:17.4]} 23. fxg5 {[%clk 0:00:11.3]} 23...
Rxf1 {[%clk 0:00:18.3]} 24. Kxf1 {[%clk 0:00:11.2]} 24... Bxe5 {[%clk
0:00:18.4]} 25. gxh6 {[%clk 0:00:09.8]} 25... cxd4 {[%clk 0:00:18]} 26. cxd4
{[%clk 0:00:09]} 26... Rc1+ {[%clk 0:00:17.4]} 27. Kg2 {[%clk 0:00:08.8]} 27...
Rc2+ {[%clk 0:00:17.6]} 28. Kf1 {[%clk 0:00:09]} 28... Bf4 {[%clk 0:00:17.7]}
29. Bf2 {[%clk 0:00:05.3]} 29... Rxb2 {[%clk 0:00:17.9]} 30. h4 {[%clk
0:00:04.2]} 30... e3 {[%clk 0:00:17.9]} 31. Be1 {[%clk 0:00:03.7]} 31... Rxa2
{[%clk 0:00:15.4]} 32. Rh3 {[%clk 0:00:03.9]} 32... Bxh6 {[%clk 0:00:13.7]} 33.
g5 {[%clk 0:00:03.9]} 33... Bg7 {[%clk 0:00:13.7]} 34. Rxe3 {[%clk 0:00:04.2]}
34... Kf7 {[%clk 0:00:14.6]} 35. Rf3+ {[%clk 0:00:04.2]} 35... Kg6 {[%clk
0:00:15.2]} 36. Bf2 {[%clk 0:00:04.6]} 36... Rd2 {[%clk 0:00:14.8]} 37. Rb3
{[%clk 0:00:04.1]} 37... b6 {[%clk 0:00:14]} 38. Ra3 {[%clk 0:00:04.6]} 38...
Bxd4 {[%clk 0:00:14.1]} 39. Bxd4 {[%clk 0:00:04.2]} 39... Rxd4 {[%clk 0:00:15]}
40. Rxa7 {[%clk 0:00:04.7]} 40... Rxh4 {[%clk 0:00:15.6]} 41. Re7 {[%clk
0:00:04.5]} 41... Re4 {[%clk 0:00:15.8]} 42. Rb7 {[%clk 0:00:04.3]} 42... Kxg5
{[%clk 0:00:16.3]} 43. Rxb6 {[%clk 0:00:04.7]} 43... h5 {[%clk 0:00:17]} 44. Kf2
{[%clk 0:00:04.8]} 44... Kg4 {[%clk 0:00:17.1]} 45. Rb7 {[%clk 0:00:04.9]} 45...
h4 {[%clk 0:00:16.6]} 46. Rg7+ {[%clk 0:00:04.4]} 46... Kh3 {[%clk 0:00:17.1]}
47. Kf3 {[%clk 0:00:05]} 47... Re5 {[%clk 0:00:15.5]} 48. Rg1 {[%clk 0:00:04.8]}
48... Rf5+ {[%clk 0:00:15.9]} 49. Ke4 {[%clk 0:00:05.3]} 49... Kh2 {[%clk
0:00:16.5]} 50. Rg6 {[%clk 0:00:04.8]} 50... Rf1 {[%clk 0:00:16.2]} 51. Ke3
{[%clk 0:00:03.9]} 51... e5 {[%clk 0:00:13.6]} 52. Ke2 {[%clk 0:00:03.7]} 52...
Rf5 {[%clk 0:00:13.7]} 53. Rg4 {[%clk 0:00:03.7]} 53... h3 {[%clk 0:00:13.9]}
54. Ke1 {[%clk 0:00:04.2]} 54... Rf4 {[%clk 0:00:13.8]} 55. Rg5 {[%clk
0:00:03.8]} 55... Ra4 {[%clk 0:00:13.3]} 56. Rxe5 {[%clk 0:00:03.3]} 56... Ra2
{[%clk 0:00:13.6]} 57. Rg5 {[%clk 0:00:03]} 57... Rg2 {[%clk 0:00:14.1]} 58. Rh5
{[%clk 0:00:02.9]} 58... Kg3 {[%clk 0:00:12.6]} 59. Rg5+ {[%clk 0:00:03.4]}
59... Kf3 {[%clk 0:00:12.3]} 60. Rf5+ {[%clk 0:00:03.9]} 60... Kg4 {[%clk
0:00:12.4]} 61. Rf8 {[%clk 0:00:03.8]} 61... h2 {[%clk 0:00:11.6]} 62. Rg8+
{[%clk 0:00:04.3]} 62... Kh3 {[%clk 0:00:11.6]} 63. Rh8+ {[%clk 0:00:04.8]}
63... Kg3 {[%clk 0:00:12.2]} 64. Rg8+ {[%clk 0:00:05.4]} 64... Kf3 {[%clk
0:00:12.5]} 65. Rf8+ {[%clk 0:00:05.1]} 65... Ke4 {[%clk 0:00:12]} 66. Re8+
{[%clk 0:00:05.2]} 66... Kd5 {[%clk 0:00:11.7]} 67. Rd8+ {[%clk 0:00:05.6]}
67... Ke6 {[%clk 0:00:12.1]} 68. Re8+ {[%clk 0:00:05.9]} 68... Kf7 {[%clk
0:00:12.5]} 69. Rh8 {[%clk 0:00:06.5]} 69... Rg1+ {[%clk 0:00:12.4]} 70. Kf2
{[%clk 0:00:07.1]} 70... h1=Q {[%clk 0:00:13.3]} 71. Rxh1 {[%clk 0:00:06]} 71...
Rxh1 {[%clk 0:00:14.2]} 0-1

[Event "Early-Titled-Tuesday-Blitz-January-30-2024"]
[Site "Chess.com"]
[Date "2024.01.30"]
[Round "4"]
[White "inneremptiness"]
[Black "Rud_Makarian"]
[Result "1-0"]
[WhiteElo "2869"]
[BlackElo "3012"]
[TimeControl "180+1"]
[EndTime "8:42:41 PST"]
[Termination "inneremptiness won by resignation"]

1. e4 {[%clk 0:03:00.9]} 1... c5 {[%clk 0:02:59.9]} 2. Nf3 {[%clk 0:02:59.4]}
2... d6 {[%clk 0:03:00.1]} 3. d4 {[%clk 0:02:58.3]} 3... cxd4 {[%clk 0:03:01]}
4. Nxd4 {[%clk 0:02:59.2]} 4... Nf6 {[%clk 0:03:01.9]} 5. Nc3 {[%clk 0:02:59.3]}
5... Nc6 {[%clk 0:03:02.6]} 6. Bg5 {[%clk 0:02:48.8]} 6... Bd7 {[%clk
0:03:02.7]} 7. f3 {[%clk 0:02:33.4]} 7... g6 {[%clk 0:02:52.4]} 8. Be3 {[%clk
0:02:23.8]} 8... Nxd4 {[%clk 0:02:45.4]} 9. Bxd4 {[%clk 0:02:18.1]} 9... Bh6
{[%clk 0:02:44]} 10. Bc4 {[%clk 0:02:13.6]} 10... O-O {[%clk 0:02:41.6]} 11. O-O
{[%clk 0:02:08]} 11... Bg7 {[%clk 0:02:34.8]} 12. Re1 {[%clk 0:02:04.8]} 12...
a6 {[%clk 0:02:30.2]} 13. a4 {[%clk 0:01:47.7]} 13... Rc8 {[%clk 0:02:28.3]} 14.
Bb3 {[%clk 0:01:41.4]} 14... Re8 {[%clk 0:02:08.5]} 15. Nd5 {[%clk 0:01:18.7]}
15... Nxd5 {[%clk 0:01:54.3]} 16. Bxg7 {[%clk 0:01:17.3]} 16... Kxg7 {[%clk
0:01:50.2]} 17. exd5 {[%clk 0:01:05.4]} 17... Qb6+ {[%clk 0:01:49.2]} 18. Kh1
{[%clk 0:01:05.6]} 18... Qf2 {[%clk 0:01:25.9]} 19. Re2 {[%clk 0:01:01.2]} 19...
Qh4 {[%clk 0:01:24.4]} 20. Qd2 {[%clk 0:00:58.4]} 20... Qf6 {[%clk 0:01:23.8]}
21. c3 {[%clk 0:00:55.7]} 21... h5 {[%clk 0:01:24.2]} 22. Rae1 {[%clk
0:00:54.5]} 22... h4 {[%clk 0:01:23.6]} 23. h3 {[%clk 0:00:53.3]} 23... Bf5
{[%clk 0:01:17.1]} 24. Bc2 {[%clk 0:00:42.3]} 24... Bxc2 {[%clk 0:01:11.4]} 25.
Qxc2 {[%clk 0:00:42.2]} 25... Rc4 {[%clk 0:01:03.6]} 26. Re4 {[%clk 0:00:40.1]}
26... Rxe4 {[%clk 0:01:01.6]} 27. Qxe4 {[%clk 0:00:41]} 27... Kf8 {[%clk
0:00:44.9]} 28. Qg4 {[%clk 0:00:40]} 28... Rd8 {[%clk 0:00:42.2]} 29. Re4 {[%clk
0:00:40.3]} 29... b5 {[%clk 0:00:34.9]} 30. Rf4 {[%clk 0:00:30]} 30... Qe5
{[%clk 0:00:26.8]} 31. Qxh4 {[%clk 0:00:30.4]} 31... Kg7 {[%clk 0:00:20.6]} 32.
Re4 {[%clk 0:00:27.3]} 32... Qxd5 {[%clk 0:00:20.9]} 33. Qxe7 {[%clk 0:00:27.2]}
33... Rb8 {[%clk 0:00:11.9]} 34. Rd4 {[%clk 0:00:23.4]} 34... Qe5 {[%clk
0:00:12.1]} 35. Qxd6 {[%clk 0:00:22.8]} 35... Qxd6 {[%clk 0:00:12.3]} 36. Rxd6
{[%clk 0:00:23.7]} 36... bxa4 {[%clk 0:00:13.2]} 37. Rxa6 {[%clk 0:00:24.2]}
37... Rxb2 {[%clk 0:00:12.3]} 38. Rxa4 {[%clk 0:00:24.9]} 38... Rc2 {[%clk
0:00:13]} 39. Rc4 {[%clk 0:00:25.6]} 39... f5 {[%clk 0:00:09.8]} 40. h4 {[%clk
0:00:25.5]} 40... Kh6 {[%clk 0:00:09.1]} 41. Kh2 {[%clk 0:00:25.8]} 41... Kh5
{[%clk 0:00:09.5]} 42. Kg3 {[%clk 0:00:26.1]} 42... g5 {[%clk 0:00:10.1]} 43.
hxg5 {[%clk 0:00:26]} 43... Kxg5 {[%clk 0:00:11]} 44. f4+ {[%clk 0:00:23.1]}
44... Kh5 {[%clk 0:00:10.1]} 45. Rc5 {[%clk 0:00:23]} 45... Kg6 {[%clk
0:00:09.8]} 46. Kf3 {[%clk 0:00:23.6]} 46... Rc1 {[%clk 0:00:09.9]} 47. Rc6+
{[%clk 0:00:20]} 47... Kh5 {[%clk 0:00:08.8]} 48. Rc5 {[%clk 0:00:20.4]} 48...
Kg6 {[%clk 0:00:08]} 49. g3 {[%clk 0:00:20.7]} 49... Rf1+ {[%clk 0:00:07.8]} 50.
Kg2 {[%clk 0:00:21.4]} 50... Rc1 {[%clk 0:00:08]} 51. Kh2 {[%clk 0:00:21.2]}
51... Rc2+ {[%clk 0:00:07.3]} 52. Kh3 {[%clk 0:00:21.7]} 52... Rc1 {[%clk
0:00:08.2]} 53. Kg2 {[%clk 0:00:21.1]} 53... Rc2+ {[%clk 0:00:06.7]} 54. Kf3
{[%clk 0:00:21.7]} 54... Rc1 {[%clk 0:00:07.6]} 55. Rc8 {[%clk 0:00:21.6]} 55...
Rf1+ {[%clk 0:00:06.5]} 56. Ke3 {[%clk 0:00:20.5]} 56... Rg1 {[%clk 0:00:05.4]}
57. Kd4 {[%clk 0:00:20.4]} 57... Kf7 {[%clk 0:00:04.1]} 58. Ke5 {[%clk
0:00:20.6]} 58... Rxg3 {[%clk 0:00:02.9]} 59. Kxf5 {[%clk 0:00:21.2]} 59... Rh3
{[%clk 0:00:02.4]} 60. Rc7+ {[%clk 0:00:21.5]} 60... Kf8 {[%clk 0:00:02.9]} 61.
c4 {[%clk 0:00:21.8]} 61... Rh6 {[%clk 0:00:02.8]} 62. c5 {[%clk 0:00:21.4]}
62... Ra6 {[%clk 0:00:03.5]} 63. Ke5 {[%clk 0:00:21.7]} 63... Ke8 {[%clk
0:00:03.8]} 64. f5 {[%clk 0:00:22]} 64... Ra1 {[%clk 0:00:03.8]} 65. Ke6 {[%clk
0:00:21.8]} 65... Re1+ {[%clk 0:00:04.1]} 66. Kf6 {[%clk 0:00:22.4]} 66... Kd8
{[%clk 0:00:04.5]} 67. Ra7 {[%clk 0:00:20.9]} 67... Rc1 {[%clk 0:00:04.5]} 68.
Ra5 {[%clk 0:00:21.5]} 68... Kd7 {[%clk 0:00:04.5]} 69. Kf7 {[%clk 0:00:22]}
69... Rf1 {[%clk 0:00:03]} 70. f6 {[%clk 0:00:21.8]} 70... Kc6 {[%clk
0:00:03.5]} 71. Ke7 {[%clk 0:00:21]} 71... Re1+ {[%clk 0:00:03.8]} 72. Kf8
{[%clk 0:00:21.5]} 72... Rf1 {[%clk 0:00:04.4]} 73. f7 {[%clk 0:00:22.1]} 73...
Re1 {[%clk 0:00:04.3]} 74. Ra6+ {[%clk 0:00:21.6]} 74... Kxc5 {[%clk 0:00:04.8]}
75. Kg7 {[%clk 0:00:22.2]} 75... Rg1+ {[%clk 0:00:03.1]} 76. Rg6 {[%clk
0:00:22.8]} 1-0

[Event "Early-Titled-Tuesday-Blitz-January-30-2024"]
[Site "Chess.com"]
[Date "2024.01.30"]
[Round "4"]
[White "DonJuanEGenaro"]
[Black "AldokhinIvan"]
[Result "0-1"]
[WhiteElo "2006"]
[BlackElo "2637"]
[TimeControl "180+1"]
[EndTime "8:42:43 PST"]
[Termination "AldokhinIvan won on time"]

1. g3 {[%clk 0:03:00.9]} 1... Nf6 {[%clk 0:02:59.5]} 2. Bg2 {[%clk 0:03:00.6]}
2... g6 {[%clk 0:03:00.4]} 3. Nf3 {[%clk 0:02:58.7]} 3... Bg7 {[%clk 0:03:00.6]}
4. O-O {[%clk 0:02:59.2]} 4... O-O {[%clk 0:03:01.2]} 5. d4 {[%clk 0:02:59.3]}
5... d6 {[%clk 0:03:00.8]} 6. c4 {[%clk 0:02:59.3]} 6... Nbd7 {[%clk 0:02:56.7]}
7. Nc3 {[%clk 0:02:59]} 7... e5 {[%clk 0:02:57.3]} 8. dxe5 {[%clk 0:02:56.6]}
8... dxe5 {[%clk 0:02:57.4]} 9. e4 {[%clk 0:02:56.3]} 9... c6 {[%clk 0:02:54.9]}
10. h3 {[%clk 0:02:55.6]} 10... Qe7 {[%clk 0:02:54.3]} 11. Be3 {[%clk 0:02:55]}
11... Nc5 {[%clk 0:02:54.4]} 12. Qc2 {[%clk 0:02:53.4]} 12... a5 {[%clk
0:02:51.8]} 13. b3 {[%clk 0:02:52.3]} 13... h6 {[%clk 0:02:09.8]} 14. Rfd1
{[%clk 0:02:38.3]} 14... Nh5 {[%clk 0:02:06.4]} 15. Qd2 {[%clk 0:02:26.1]} 15...
Kh7 {[%clk 0:01:54.7]} 16. Qd6 {[%clk 0:02:24.4]} 16... Qxd6 {[%clk 0:01:51.4]}
17. Rxd6 {[%clk 0:02:20.4]} 17... Ne6 {[%clk 0:01:46.3]} 18. Na4 {[%clk
0:02:16.2]} 18... Re8 {[%clk 0:01:29.5]} 19. Rad1 {[%clk 0:02:06]} 19... Nf6
{[%clk 0:01:28.4]} 20. Nxe5 {[%clk 0:01:53.8]} 20... Nxe4 {[%clk 0:01:28.2]} 21.
Nxf7 {[%clk 0:01:33.4]} 21... Nxd6 {[%clk 0:01:23.5]} 22. Nxd6 {[%clk
0:01:27.6]} 22... Rd8 {[%clk 0:01:19.7]} 23. Nb6 {[%clk 0:01:25.6]} 23... Rb8
{[%clk 0:01:16]} 24. c5 {[%clk 0:01:24]} 24... Bf8 {[%clk 0:00:59.6]} 25. Be4
{[%clk 0:01:12.3]} 25... Ng7 {[%clk 0:00:55]} 26. g4 {[%clk 0:01:04.9]} 26...
Be6 {[%clk 0:00:51.2]} 27. f4 {[%clk 0:01:02]} 27... Bd5 {[%clk 0:00:38.3]} 28.
Bxd5 {[%clk 0:00:59.6]} 28... cxd5 {[%clk 0:00:38.1]} 29. Rxd5 {[%clk
0:00:58.3]} 29... Ne8 {[%clk 0:00:26.7]} 30. Nbc4 {[%clk 0:00:53.4]} 30... b5
{[%clk 0:00:19.1]} 31. Nxa5 {[%clk 0:00:47.6]} 31... Nxd6 {[%clk 0:00:16.8]} 32.
Nc6 {[%clk 0:00:47.1]} 32... Ne4 {[%clk 0:00:14.8]} 33. Nxd8 {[%clk 0:00:44]}
33... Nf6 {[%clk 0:00:04.9]} 34. Rd2 {[%clk 0:00:32.8]} 34... Be7 {[%clk
0:00:04.4]} 35. Ne6 {[%clk 0:00:32.4]} 35... Re8 {[%clk 0:00:04.9]} 36. g5
{[%clk 0:00:31.4]} 36... Nh5 {[%clk 0:00:04.3]} 37. Rd7 {[%clk 0:00:30.5]} 37...
hxg5 {[%clk 0:00:04.4]} 38. Nxg5+ {[%clk 0:00:29.1]} 38... Kg8 {[%clk
0:00:05.2]} 39. Bd4 {[%clk 0:00:28.3]} 39... Nxf4 {[%clk 0:00:04.3]} 40. Nf3
{[%clk 0:00:22.1]} 40... Ne2+ {[%clk 0:00:04.7]} 41. Kg2 {[%clk 0:00:20.3]}
41... Nxd4 {[%clk 0:00:05.6]} 42. Nxd4 {[%clk 0:00:20.1]} 42... Bxc5 {[%clk
0:00:06.5]} 43. Kf3 {[%clk 0:00:14.8]} 43... Re1 {[%clk 0:00:06.5]} 44. Nc6
{[%clk 0:00:13.8]} 44... Ra1 {[%clk 0:00:05.6]} 45. Ne5 {[%clk 0:00:12.7]} 45...
Rxa2 {[%clk 0:00:05.3]} 46. Nxg6 {[%clk 0:00:12.3]} 46... Rb2 {[%clk 0:00:05.6]}
47. h4 {[%clk 0:00:11.5]} 47... Rxb3+ {[%clk 0:00:05.4]} 48. Kg4 {[%clk
0:00:11.6]} 48... Rb1 {[%clk 0:00:05]} 49. h5 {[%clk 0:00:11.7]} 49... Rg1+
{[%clk 0:00:05]} 50. Kf5 {[%clk 0:00:11.4]} 50... Rf1+ {[%clk 0:00:05.7]} 51.
Kg5 {[%clk 0:00:10.7]} 51... Be3+ {[%clk 0:00:05.2]} 52. Kg4 {[%clk 0:00:09]}
52... b4 {[%clk 0:00:05.5]} 53. Ne7+ {[%clk 0:00:07.3]} 53... Kf7 {[%clk
0:00:04.8]} 54. Nf5+ {[%clk 0:00:06.6]} 54... Ke6 {[%clk 0:00:05.1]} 55. Re7+
{[%clk 0:00:06.6]} 55... Kf6 {[%clk 0:00:04.9]} 56. Rxe3 {[%clk 0:00:05.1]}
56... Rxf5 {[%clk 0:00:05.4]} 57. Rb3 {[%clk 0:00:03.3]} 57... Rg5+ {[%clk
0:00:05.8]} 58. Kh4 {[%clk 0:00:02.4]} 58... Rb5 {[%clk 0:00:06.1]} 59. h6
{[%clk 0:00:02.5]} 59... Kg6 {[%clk 0:00:06.3]} 60. h7 {[%clk 0:00:02.6]} 60...
Kxh7 {[%clk 0:00:06.7]} 61. Kg4 {[%clk 0:00:03.2]} 61... Kg6 {[%clk 0:00:07.1]}
62. Kf4 {[%clk 0:00:03.9]} 62... Kf6 {[%clk 0:00:07.6]} 63. Ke4 {[%clk
0:00:04.6]} 63... Rh5 {[%clk 0:00:07.8]} 64. Kd4 {[%clk 0:00:05.3]} 64... Ke6
{[%clk 0:00:07.3]} 65. Kc4 {[%clk 0:00:05.2]} 65... Rh4+ {[%clk 0:00:07.5]} 66.
Kb5 {[%clk 0:00:03.3]} 66... Kd5 {[%clk 0:00:07.8]} 67. Rxb4 {[%clk 0:00:03.3]}
67... Rh5 {[%clk 0:00:08.7]} 68. Rb2 {[%clk 0:00:02.9]} 68... Kd4+ {[%clk
0:00:09.3]} 69. Kb4 {[%clk 0:00:03.1]} 69... Rh4 {[%clk 0:00:09.9]} 0-1